Workbook

Sheet Sheet1
A4: INSTRUCTIONS: Use this form when a single information collection document involves multiple reporting and recordkeeping requirements. The totals of the figures in cols. (D), (F), (H), (I), & (K) should be entered in items 17 & 18 of OMB 83-1. For cols. (E), (F), & (J), the averages of the totals shall be computed, as follows, and then entered on the OMB 83-1. (F) Total/Total = (E) Average (H) Total/(F) Total = (G) Average (K) Total/(I) Total = (J) Average NOTE: The columns will calculate automatically. If Col. E's response is something other than annually, i.e., 1/6 years, list as "1/6" & decimal will display. | I4: TITLE OF INFORMATION COLLECTION DOCUMENT | N4: OMB NO.
I6: Pecans Grown in the States of Alabama, Arkansas, Arizona, California, Florida, Georgia, Kansas, Louisiana, Missouri, Mississippi, North Carolina, New Mexico, Oklahoma, South Carolina, and Texas; Notice of Request for Extension and Revision of a Currently Approved Information Collection | N6: 0581-0291
N9: DATE PREPARED
N11: 2019-05-31
A13: IDENTIFICATION OF REPORTING OR RECORDKEEPING REQUIREMENT | H13: ANNUAL BURDEN
H15: REPORTS | M15: RECORDS
O17: TOTAL
G18: FORMS NO (S) | H18: NO. OF | I18: NO OF | J18: TOTAL ANNUAL | K18: HOURS | L18: TOTAL | M18: NO. OF | N18: ANNUAL | O18: RECORD-
A19: SECTION OF | B19: DESCRIPTION | G19: (If "none" | H19: RESPONDENTS | I19: RESPONSES | J19: RESPONSES | K19: PER | L19: HOURS | M19: RECORD- | N19: HOURS PER | O19: KEEPING HOURS
A20: REGS. | G20: so state) | I20: PER | J20: (Col. D x E) | K20: RESPONSE | L20: (Col. F x G) | M20: KEEPERS | N20: RECORD- | O20: (Col. I x J)
I21: RESPONDENT | N21: KEEPER
A22: (A) | B22: (B) | G22: (C) | H22: (D) | I22: (E) | J22: (F) | K22: (G) | L22: (H) | M22: (I) | N22: (J) | O22: (K)
A23: 986.46 | B23: Ballot for Grower Nominees | G23: SC-307 | H23: 1,250 | I23: 1.0000 | J23: =SUM(H23*I23) -> 1,250.00 | K23: 0.2500 | L23: =SUM(J23*K23) -> 312.50
A24: 986.46 | B24: Ballot for Sheller Nominees | G24: SC-308 | H24: 50 | I24: 1.0000 | J24: 50.00 | K24: 0.0833 | L24: 4.17
A25: 986.46 | B25: Grower Nomination Form | G25: SC-309 | H25: 50 | I25: 1.0000 | J25: 50.00 | K25: 0.3330 | L25: 16.65
A26: 986.46 | B26: Sheller Nomination Form | G26: SC-310 | H26: 10 | I26: 1.0000 | J26: 10.00 | K26: 0.3330 | L26: 3.33
A27: 986.49 | B27: Grower/Sheller Questionnaire and Acceptance Statement (approved under 0581-0177) | G27: SC-9 | H27: 17 | I27: 1.0000 | J27: 17.00 | K27: 0.0833 | L27: 1.42
A28: 986.49 | B28: Public Member Questionnaire and Acceptance Statement (approved under 0581-0177) | G28: SC-8 | H28: 17 | I28: 1.0000 | J28: 17.00 | K28: 0.0833 | L28: 1.42
A29: 986.94 | B29: Grower Referendum Ballot | G29: SC-313 | H29: 2,500 | I29: 0.2000 | J29: 500.00 | K29: 0.3330 | L29: 166.50
A30: 900.14 | B30: Marketing Agreement | G30: SC-242 | H30: 50 | I30: 1.0000 | J30: 50.00 | K30: 0.0833 | L30: 4.17
A31: 900.14 | B31: Certificate of Resolution | G31: SC-242A | H31: 50 | I31: 0.2000 | J31: 10.00 | K31: 0.0833 | L31: 0.83
B32: SUBTOTAL | J32: =SUM(J23:J31) -> 1,954.00 | L32: =SUM(L23:L31) -> 511
B33: TOTAL OF ALL PAGES | J33: =SUM(J32+J42) -> 9,344.00 | L33: =SUM(L32+L42) -> 2,930.50
A34: TOTAL - COLUMNS "F" AND "I" = OMB 831, 13 b; COLUMNS "H" AND "K" = OMB 831, 13c | J34: 9,344.00 | L34: 2,931
A35: 986.177 | B35: Summary Report US Pecans Received For Your Own Account | G35: Form 1 | H35: 250 | I35: 12.00 | J35: =SUM(H35*I35) -> 3,000.00 | K35: 0.33 | L35: =SUM(J35*K35) -> 990.00
A36: 986.178 | B36: Report of Shipments and Inventory On Hand | G36: Form 2 | H36: 250 | I36: 12.00 | J36: 3,000.00 | K36: 0.33 | L36: 990.00
A37: 986.178 | B37: Exports By Country of Destination | G37: Form 3 | H37: 35 | I37: 12.00 | J37: 420.00 | K37: 0.25 | L37: 105.00
A38: 986.178 | B38: Inshell Pecans Exported to Mexico for Shelling and Returned to the United States as Shelled Meats | G38: Form 5 | H38: 15 | I38: 12.00 | J38: 180.00 | K38: 0.50 | L38: 90.00
A39: 986.177 | B39: Pecans Purchased Outside of the United States | G39: Form 6 | H39: 15 | I39: 12.00 | J39: 180.00 | K39: 0.33 | L39: 59.40
A40: 986.78 and 986.62 | B40: Inter-Handler Transfer Report | G40: Form 4 | H40: 30 | I40: 12.0000 | J40: 360.00 | K40: 0.1670 | L40: 60.12
A41: 986.78 and 986.75 | B41: Year-End Inventory Report | G41: Form 7 | H41: 250 | I41: 1.0000 | J41: 250.00 | K41: 0.5000 | L41: 125.00
B42: SUBTOTAL | J42: =SUM(J35:J41) -> 7,390.00 | L42: =SUM(L35:L41) -> 2,420
